bitfinex/quotes_ETHUSD_20260226
["timestamp","ask_amount","ask_price","bid_price","bid_amount"]
[1772103781489,0.001,2068.0,2067.6,1.26077447]
[1772103784685,0.82003849,2068.0,2067.6,1.26077447]
[1772103784884,0.82003849,2068.0,2067.4,1.26077447]
[1772103785087,0.81903849,2067.7,2067.3,0.0011]
[1772103785277,0.81903849,2067.6,2067.3,0.0011]
[1772103785462,1.20918984,2067.5,2067.3,0.0011]
[1772103786676,0.82006077,2067.4,2067.1,0.0011]
[1772103788969,1.20930682,2067.3,2067.1,0.0011]
[1772103790708,1.20922556,2067.5,2067.1,1.26187447]
[1772103790998,5.65760005,2067.6,2067.1,1.26187447]
[1772103791173,0.82094008,2067.5,2067.1,0.0011]
[1772103793391,2.03115062,2067.4,2067.1,0.0011]
[1772103794490,1.20924833,2067.4,2067.1,0.0011]
[1772103795005,1.20924833,2067.4,2067.1,1.26187447]
[1772103795204,1.20923705,2067.5,2067.1,1.26187447]
[1772103799184,0.001,2067.8,2067.2,1.26077447]
[1772103799572,3.10494143,2068.0,2067.2,1.26077447]
[1772103799968,3.10489921,2068.0,2067.2,1.26077447]
[1772103800190,3.1049023,2068.0,2067.2,1.26077447]
[1772103800781,3.1049023,2068.0,2067.6,1.26077447]
[1772103800998,0.001,2067.8,2067.6,1.26077447]
[1772103803205,0.83722968,2067.8,2067.4,1.20920052]
[1772103803510,0.83722968,2067.8,2067.2,1.26077447]
[1772103804080,0.83722968,2067.8,2067.1,0.0011]
[1772103804402,1.26391639,2067.8,2067.1,0.75707607]
[1772103805707,1.26291639,2067.6,2067.1,0.75707607]
[1772103805893,1.26291639,2067.6,2067.1,0.0011]
[1772103807592,1.26291639,2067.6,2067.1,0.7733622]
[1772103807801,2.4720821,2067.6,2067.1,0.7733622]
[1772103809005,1.26291639,2067.6,2067.1,1.98278034]
[1772103809313,2.47205149,2067.6,2067.1,1.98278034]
[1772103810508,2.47206919,2067.6,2067.1,1.98278034]
[1772103810713,1.20907288,2067.7,2067.2,0.78158968]
[1772103811212,2.45867098,2067.7,2067.2,0.78158968]
[1772103811399,1.21003251,2067.8,2067.2,0.78158968]
[1772103812212,1.896,2067.9,2067.4,0.78361866]
[1772103812507,3.10496104,2067.9,2067.4,0.78361866]
[1772103812686,3.10496104,2067.9,2067.4,1.99286166]
[1772103812880,0.001,2067.6,2067.5,0.7866099]
[1772103813083,0.001,2068.0,2067.6,0.7866099]
[1772103813286,6.08366365,2068.7,2067.7,0.7866099]
[1772103813484,1.2495981,2068.6,2067.9,0.7866099]
[1772103814584,2.45818737,2068.6,2068.0,1.20889748]
[1772103814979,2.45818737,2068.6,2068.1,0.79249547]
[1772103815293,3.1034301,2068.8,2068.1,0.79249547]
[1772103815501,4.3530282,2068.8,2068.1,0.79249547]
[1772103815719,1.2495981,2068.7,2068.1,0.79249547]
[1772103816017,1.2495981,2068.7,2067.7,2.00445865]
[1772103816417,1.2495981,2068.7,2067.8,0.79824544]
[1772103816607,1.24729546,2068.5,2067.6,0.80107137]
[1772103816920,1.24729546,2068.5,2067.3,0.0011]
[1772103817413,1.24729546,2068.5,2067.3,1.21040046]
[1772103817615,1.24729546,2068.5,2067.4,0.80386131]
[1772103818810,1.24729546,2068.3,2067.4,2.01307382]
[1772103819011,1.24729546,2068.1,2067.4,2.01307382]
[1772103820218,1.24729546,2068.1,2067.4,2.01310793]
[1772103821107,1.20889748,2068.0,2067.4,2.01310793]
[1772103821417,1.20889748,2068.0,2067.4,0.80386131]
[1772103821719,2.45619294,2068.0,2067.4,0.80386131]
[1772103821910,1.24729546,2067.9,2067.4,0.80386131]
[1772103822248,1.24729546,2067.9,2067.3,0.0011]
[1772103822722,1.24729546,2067.8,2067.3,0.0011]
[1772103822890,1.24729546,2067.6,2067.3,0.0011]
[1772103823894,1.20918984,2067.5,2067.3,0.0011]
[1772103824496,2.4564853,2067.5,2067.3,0.0011]
[1772103824892,2.4564853,2067.5,2067.4,0.0011]
[1772103825223,4.35139001,2067.7,2067.4,0.0011]
[1772103825392,3.10409455,2067.7,2067.4,0.0011]
[1772103825719,4.35139001,2067.7,2067.4,0.0011]
[1772103827404,4.2873076,2067.7,2067.4,0.0011]
[1772103828016,1.24729546,2067.6,2067.4,0.0011]
[1772103828224,1.24729546,2067.6,2067.1,0.0011]
[1772103829006,1.24729546,2067.6,2067.1,1.21052191]
[1772103829415,1.24729546,2067.6,2067.1,0.0011]
[1772103831323,2.4564538,2067.6,2067.1,0.0011]
[1772103832119,1.20915834,2067.6,2067.1,0.0011]
[1772103832425,2.4564538,2067.6,2067.1,0.0011]
[1772103833422,2.59732944,2067.9,2067.2,0.00297812]
[1772103833611,2.59732944,2067.9,2067.1,0.38597561]
[1772103833612,1.3873701,2067.8,2067.1,0.0011]
[1772103836010,1.3873701,2067.6,2067.1,0.0011]
[1772103836528,1.3873701,2067.6,2067.3,0.0011]
[1772103836728,1.3883701,2067.6,2067.3,0.0011]
[1772103838599,1.3873701,2067.5,2067.3,0.0011]
[1772103839021,0.001,2067.9,2067.5,0.01785436]
[1772103839208,1.3883701,2067.9,2067.5,0.01785436]
[1772103839409,1.3873701,2067.8,2067.3,0.0011]
[1772103840529,1.3873701,2067.7,2067.3,0.0011]
[1772103841334,1.3883701,2067.9,2067.3,0.02352627]
[1772103841710,0.001,2067.9,2067.3,0.02352627]
[1772103843026,0.001,2067.9,2067.4,1.20924833]
[1772103843223,0.001,2067.9,2067.4,1.23615169]
[1772103844136,0.001,2067.9,2067.5,0.02907086]
[1772103845119,1.3883701,2067.9,2067.3,4.86935924]
[1772103845631,1.3883701,2067.9,2067.3,0.0011]
[1772103846031,1.3883701,2067.9,2067.2,1.20545561]
[1772103847038,1.3873701,2067.7,2067.1,0.0011]
[1772103848242,1.3873701,2067.7,2067.4,0.0011]
[1772103848739,1.3883701,2067.7,2067.4,0.0011]
[1772103849531,0.001,2067.7,2067.4,0.0011]
[1772103850553,0.001,2067.7,2067.4,0.04284827]
[1772103851614,0.001,2067.7,2067.4,1.25205319]
[1772103856182,0.001,2067.7,2067.5,0.05366427]
[1772103857192,0.001,2067.7,2067.4,0.0011]
[1772103857988,1.3883701,2067.7,2067.4,0.0011]
[1772103860182,1.3873701,2067.6,2067.4,0.0011]
[1772103861579,1.3873701,2067.6,2067.5,0.0011]
[1772103869679,0.001,2067.7,2067.5,0.08110033]
[1772103869877,0.001,2067.7,2067.5,0.0011]
[1772103870091,1.41212011,2067.7,2067.5,0.0011]
[1772103871490,1.41212011,2067.7,2067.1,0.0011]
[1772103871491,1.41112011,2067.3,2067.1,0.0011]
[1772103871661,1.41112011,2067.3,2067.0,0.0011]
[1772103871868,1.41112011,2067.1,2067.0,0.0011]
[1772103872488,2.62047415,2067.3,2067.0,0.0011]
[1772103873196,1.41112011,2067.3,2067.0,0.0011]
[1772103873396,2.62033681,2067.5,2067.1,0.29513903]
[1772103873900,2.62033681,2067.5,2067.2,0.0011]
[1772103874106,2.62133681,2067.5,2067.2,0.0011]
[1772103874728,1.41112011,2067.4,2067.2,0.0011]
[1772103876130,1.21019552,2067.5,2067.2,0.0011]
[1772103878348,0.001,2067.5,2067.2,0.0011]
[1772103878816,0.001,2067.5,2067.2,0.09851201]
[1772103883919,0.001,2067.5,2067.2,1.30786549]
[1772103885935,0.001,2067.3,2067.2,1.30786549]
[1772103889742,0.001,2067.7,2067.4,0.11123634]
[1772103889942,1.3867701,2067.6,2067.2,0.0011]
[1772103890240,1.3867701,2067.5,2067.2,0.11233634]
[1772103891146,2.5968674,2067.7,2067.2,0.11233634]
[1772103891353,1.3867701,2067.6,2067.2,0.11233634]
[1772103895275,1.3867701,2067.6,2067.2,1.61678376]
[1772103897566,1.3867701,2067.6,2067.4,0.0011]
[1772103898066,0.001,2067.7,2067.5,0.12161096]
[1772103898751,0.001,2067.7,2067.4,0.29622012]
[1772103898939,0.001,2067.7,2067.4,0.41857864]
[1772103900173,0.001,2067.7,2067.4,0.12345852]
[1772103900467,1.39249246,2067.5,2067.2,1.6411]
[1772103900660,1.39249246,2067.3,2067.2,0.0011]
[1772103901974,1.39249246,2067.3,2067.0,0.0011]
[1772103902147,1.39249246,2067.1,2067.0,0.0011]
[1772103902517,2.60184776,2067.3,2067.0,0.0011]
[1772103902669,1.39249246,2067.2,2067.0,0.0011]
[1772103903470,2.60166959,2067.6,2067.1,0.56923244]
[1772103903670,1.39249246,2067.5,2067.1,0.56923244]
[1772103904052,1.39249246,2067.5,2067.1,0.12638929]
[1772103905871,6.73639629,2067.7,2067.2,1.33785911]
[1772103905872,4.50157194,2067.7,2067.2,1.33785911]
[1772103906592,0.001,2067.7,2067.3,0.57201878]
[1772103906880,1.39349246,2067.9,2067.5,0.57201878]
[1772103908174,1.39349246,2067.9,2067.2,0.12984595]
[1772103908175,1.39249246,2067.8,2067.2,0.12984595]
[1772103908373,1.39249246,2067.7,2067.0,1.34038344]
[1772103908878,1.39249246,2067.7,2067.0,1.78322659]
[1772103909080,1.39249246,2067.7,2067.1,0.13051798]
[1772103910080,1.39249246,2067.7,2067.2,0.0011]
[1772103910282,0.001,2067.5,2067.2,0.0011]
[1772103915388,0.001,2067.9,2067.4,1.78764996]
[1772103915683,1.39249246,2067.8,2067.2,0.44394315]
[1772103915991,1.39249246,2067.8,2067.3,1.34480681]
[1772103916681,1.39249246,2067.8,2067.2,0.0011]
[1772103918987,1.39249246,2067.6,2067.2,0.0011]
[1772103919289,1.39249246,2067.6,2067.0,0.0011]
[1772103919793,1.39249246,2067.6,2066.8,0.0011]
[1772103920103,1.39249246,2067.6,2066.8,1.34590681]
[1772103920280,1.39249246,2067.6,2066.8,0.0011]
[1772103921574,1.39249246,2067.4,2066.8,0.0011]
[1772103921891,1.39249246,2067.4,2067.1,0.0011]
[1772103923991,2.60265733,2067.6,2067.1,1.34590681]
[1772103924197,0.001,2067.6,2067.1,1.34590681]
[1772103926196,0.001,2067.6,2067.2,2.62261145]
[1772103926570,0.001,2067.6,2067.3,1.41324613]
[1772103928194,0.001,2067.6,2067.3,2.62253661]
[1772103928700,0.001,2067.6,2067.3,1.41324613]
[1772103930066,0.001,2067.6,2067.3,2.62254367]
[1772103930271,0.001,2067.6,2067.4,1.41324613]
[1772103931207,1.20999867,2067.9,2067.4,1.41324613]
[1772103931208,1.44708674,2067.9,2067.4,1.41324613]
[1772103932303,0.001,2067.9,2067.4,1.41324613]
[1772103932685,0.001,2067.9,2067.5,2.62243597]
[1772103934074,0.001,2067.7,2067.5,2.62243597]
[1772103935414,0.001,2067.7,2067.6,1.41324613]
[1772103937006,1.42687027,2068.2,2067.6,1.43148671]
[1772103937885,1.42687027,2068.2,2067.8,1.43148671]
[1772103938909,2.6355677,2068.4,2067.8,1.43148671]
[1772103939110,3.10765713,2068.5,2067.8,1.43148671]
[1772103939288,1.42687027,2068.4,2067.8,1.43148671]
[1772103940513,1.42687027,2068.5,2068.0,1.43148671]
[1772103941209,2.63541309,2068.7,2068.0,1.43148671]
[1772103941511,2.63541309,2068.7,2068.2,1.43148671]
[1772103941693,1.42687027,2068.7,2068.2,1.43148671]
[1772103942222,1.42687027,2068.7,2068.3,1.87375143]
[1772103942524,1.42687027,2068.7,2068.3,3.08243116]
[1772103944033,1.42687027,2068.6,2067.5,0.44226472]
[1772103944194,1.42687027,2068.2,2067.3,1.43148671]
[1772103944596,1.42687027,2068.0,2067.5,1.43148671]
[1772103944805,1.42687027,2068.0,2067.4,1.20924833]
[1772103945890,1.42687027,2068.0,2067.6,0.0011]
[1772103946109,1.42687027,2068.0,2067.1,2.64197192]
[1772103946432,1.42687027,2068.0,2067.4,0.0011]
[1772103946797,1.42687027,2067.8,2067.4,0.0011]
[1772103947624,2.5738802,2067.6,2066.9,0.0011]
[1772103947839,1.42687027,2067.5,2066.6,0.0011]
[1772103948494,1.42687027,2067.4,2066.6,0.0011]
[1772103949425,1.42687027,2067.2,2066.6,0.0011]
[1772103951527,1.42687027,2067.0,2066.6,0.0011]
[1772103951828,1.42687027,2067.0,2066.5,0.0011]
[1772103952602,1.42687027,2067.0,2066.5,1.43258671]
[1772103953117,1.42687027,2067.0,2066.5,0.0011]
[1772103953925,1.42687027,2066.8,2066.5,0.0011]
[1772103954329,2.63639328,2067.0,2066.5,0.0011]
[1772103955344,1.42687027,2067.0,2066.5,1.43258671]
[1772103955512,1.42687027,2066.9,2066.5,0.0011]
[1772103955711,1.20945139,2067.1,2066.5,1.43258671]
[1772103955712,1.42687027,2067.1,2066.5,1.43258671]
[1772103956222,2.63633763,2067.1,2066.5,2.64232456]
[1772103957505,1.42687027,2067.1,2066.6,1.47821114]
[1772103958100,1.42687027,2067.1,2066.7,0.0011]
[1772103958301,1.42687027,2067.1,2066.7,1.2107579]
[1772103960821,1.42687027,2067.1,2066.7,0.0011]
[1772103961307,1.42687027,2067.1,2066.7,1.47931114]
[1772103962036,3.38116735,2067.3,2066.7,1.47931114]
[1772103962212,4.59048876,2067.3,2066.7,1.47931114]
[1772103962606,1.47916735,2067.2,2066.7,2.68892914]
[1772103965534,1.902,2067.3,2066.8,1.47821114]
[1772103965743,2.68840467,2067.5,2066.8,1.47821114]
[1772103966109,1.47916735,2067.4,2066.8,1.47821114]
[1772103966313,1.47916735,2067.4,2066.7,0.0011]
[1772103966638,1.47916735,2067.0,2066.5,0.0011]
[1772103967609,1.47916735,2066.8,2066.3,0.0011]
[1772103970446,1.47916735,2066.7,2066.3,0.0011]
[1772103970742,1.47916735,2066.7,2066.5,0.0011]
[1772103970913,2.68875619,2066.9,2066.5,0.0011]
[1772103971115,1.4765156,2066.8,2066.3,0.0011]
[1772103971320,1.4765156,2066.8,2066.1,0.0011]
[1772103971321,1.47916735,2066.7,2066.1,0.0011]
[1772103971546,1.47916735,2066.5,2066.1,0.0011]
[1772103972013,1.47916735,2066.8,2066.1,1.47931114]
[1772103972215,1.47916735,2066.6,2066.1,2.68931969]
[1772103972412,1.47916735,2066.6,2066.1,0.0011]
[1772103974250,1.47916735,2066.4,2066.1,0.0011]
[1772103976319,1.47916735,2066.2,2065.9,0.0011]
[1772103976644,1.47916735,2066.5,2065.9,1.47931114]
[1772103976949,1.20971712,2066.6,2065.9,1.47931114]
[1772103977161,4.59286176,2066.7,2065.9,1.47931114]
[1772103978149,1.47916735,2066.6,2065.9,1.47931114]
[1772103978345,1.47916735,2066.5,2065.9,2.68940425]
[1772103978850,1.47916735,2066.5,2065.9,1.21119311]
[1772103980552,1.47916735,2066.5,2065.9,1.47931114]
[1772103981436,1.20977686,2066.5,2065.9,1.47931114]
[1772103981641,1.47916735,2066.8,2065.9,1.47931114]
[1772103982041,1.47916735,2066.8,2066.1,0.0011]
[1772103982642,1.47916735,2066.6,2066.1,0.0011]
[1772103984043,1.47916735,2066.8,2066.1,1.47931114]
[1772103985744,1.48016735,2067.0,2066.3,1.47821114]
[1772103986954,1.48016735,2067.0,2066.1,2.84606962]
[1772103987123,1.48016735,2067.0,2066.1,4.32753266]
[1772103987852,1.37373573,2066.8,2066.1,2.84606962]
[1772103988046,1.37373573,2066.8,2066.2,1.48146304]
[1772103990055,2.58425929,2067.0,2066.4,1.48146304]
[1772103993259,1.37373573,2066.9,2066.4,2.6912498]
[1772103993757,1.37373573,2066.9,2066.2,2.69141258]
[1772103994144,0.001,2067.0,2066.3,1.48146304]
[1772103994343,0.001,2067.2,2066.6,1.40259593]
[1772103994549,0.001,2067.2,2066.8,1.40259593]
[1772103994934,1.901,2067.6,2066.8,1.40259593]
[1772103995131,1.901,2067.6,2066.9,1.20954085]
[1772103995336,1.37608469,2067.5,2066.9,1.20954085]
[1772103995535,1.37608469,2067.5,2066.9,2.61213678]
[1772103995730,1.37608469,2067.5,2067.0,1.40259593]
[1772103997134,1.901,2067.6,2067.0,1.40259593]
[1772103997344,1.901,2067.6,2067.1,2.61201976]
[1772103997742,3.11013749,2067.6,2067.1,2.61201976]
[1772103998142,1.37608469,2067.5,2067.1,1.20942383]
[1772103998361,1.37608469,2067.5,2067.0,2.6120317]
[1772103999467,2.58532333,2067.5,2067.0,2.61207666]
[1772104000565,1.37608469,2067.5,2067.0,2.61207666]
[1772104001356,2.58527517,2067.5,2067.0,2.61207666]
[1772104002345,1.37608469,2067.5,2067.1,1.40259593]
[1772104003157,2.58527726,2067.5,2067.1,1.40259593]
[1772104004251,1.37608469,2067.5,2067.1,1.40259593]
[1772104005073,2.58527972,2067.5,2067.1,1.40259593]
[1772104006773,0.001,2067.3,2067.1,1.40259593]
[1772104007778,0.001,2067.3,2067.1,2.61200661]
[1772104009375,0.001,2067.3,2067.2,1.40259593]
[1772104010577,0.001,2067.3,2066.9,1.48073599]
[1772104011279,0.001,2067.3,2067.0,1.7759332]
[1772104012262,1.65469642,2067.1,2066.6,1.48183599]
[1772104012462,1.65469642,2067.1,2066.6,2.69154952]
[1772104013486,1.65469642,2067.1,2066.6,1.48183599]
[1772104014477,2.56898155,2067.0,2066.6,1.48183599]
[1772104014647,1.35949921,2066.9,2066.6,1.48183599]
[1772104015350,1.20948234,2067.0,2066.6,1.48183599]
[1772104015882,2.56898155,2067.0,2066.6,1.48183599]
[1772104018789,2.56898155,2067.0,2066.8,0.0011]
[1772104020671,1.20948234,2067.0,2066.8,0.0011]
[1772104020984,1.46397734,2066.9,2066.5,0.0011]
[1772104021175,1.46397734,2066.8,2066.1,1.44129939]
[1772104021371,1.46397734,2066.8,2066.1,0.0011]
[1772104021551,1.46397734,2066.6,2066.1,0.0011]
[1772104022081,1.46397734,2066.6,2066.1,1.44129939]
[1772104022258,1.46397734,2066.6,2066.1,0.0011]
[1772104023181,2.67375232,2066.5,2066.1,0.0011]
[1772104024258,1.214,2066.8,2066.1,1.44129939]
[1772104024864,1.46397734,2066.9,2066.1,1.44129939]
[1772104025284,1.46397734,2066.9,2066.3,1.44019939]
[1772104025585,1.46497734,2067.1,2066.3,1.44019939]
[1772104025780,0.001,2067.1,2066.3,1.44019939]
[1772104026464,0.001,2067.1,2066.4,1.44019939]
[1772104026663,0.001,2067.3,2066.4,1.44019939]
[1772104027188,0.001,2067.3,2066.6,1.44019939]
[1772104028579,0.001,2067.3,2066.8,1.44019939]
[1772104030891,1.21030682,2067.3,2066.8,2.64976856]
[1772104031101,0.001,2067.3,2066.8,2.64976856]
[1772104031384,0.001,2066.9,2066.8,2.64976856]
[1772104033378,0.001,2067.3,2066.9,1.44019939]
[1772104033774,0.001,2067.6,2066.9,1.44019939]
[1772104033973,1.46397734,2067.5,2066.9,1.44019939]
[1772104035277,1.46397734,2067.5,2067.0,1.44019939]
[1772104037704,1.46397734,2067.5,2067.1,1.20942383]
[1772104038298,1.46397734,2067.5,2067.1,2.64962322]
[1772104042510,0.001,2067.6,2067.2,1.44019939]
[1772104043186,1.2088707,2068.1,2067.2,1.44019939]
[1772104043397,1.46397734,2068.0,2067.4,1.44019939]
[1772104044881,1.46397734,2067.8,2067.4,1.44019939]
[1772104045180,1.46397734,2067.8,2067.4,2.64944674]
[1772104046905,1.46397734,2067.8,2067.5,1.40101591]
[1772104048190,4.83559691,2068.0,2067.5,1.40101591]
[1772104048191,1.3718947,2068.0,2067.5,1.40101591]
[1772104048604,1.3718947,2068.3,2067.6,1.40101591]
[1772104049493,1.3718947,2068.2,2067.8,1.40101591]
[1772104053200,1.20872018,2068.4,2067.9,1.40101591]
[1772104053397,1.3718947,2068.3,2067.9,1.40101591]
[1772104053599,6.73058263,2068.5,2067.9,1.40101591]
[1772104053600,3.2678947,2068.5,2067.9,1.40101591]
[1772104053796,0.001,2068.5,2068.0,1.40101591]
[1772104055317,1.3728947,2068.5,2068.1,2.60985494]
[1772104055723,0.001,2068.0,2067.7,2.61004919]
[1772104055890,1.39950408,2068.0,2067.7,1.40101591]
[1772104056095,0.001,2068.0,2067.7,2.61008057]
[1772104056602,0.001,2068.0,2067.8,1.46484593]
[1772104057605,0.001,2068.0,2067.9,1.20895594]
[1772104058719,0.001,2068.0,2067.8,2.67381428]
[1772104063024,0.001,2068.0,2067.9,1.46484593]
[1772104064630,1.39850408,2068.4,2068.0,1.46484593]
[1772104065939,1.39850408,2068.4,2068.0,2.67373255]
[1772104067130,1.39950408,2068.5,2068.1,1.46484593]
[1772104068231,1.39950408,2068.5,2068.2,2.67362651]
[1772104069134,1.39950408,2068.5,2068.2,1.46484593]
[1772104069313,1.39850408,2068.4,2067.9,1.20891818]
[1772104069519,1.39850408,2068.4,2068.1,1.656]
[1772104074846,1.39850408,2068.3,2068.1,1.656]
[1772104075047,1.39850408,2068.3,2067.8,1.46594593]
[1772104075346,1.39850408,2068.3,2067.8,2.67495699]
[1772104075928,1.39850408,2068.3,2067.9,1.44351831]
[1772104076825,1.38446224,2068.2,2067.8,1.6601]
[1772104077229,1.38446224,2068.2,2067.8,0.0011]
[1772104079352,1.38446224,2068.0,2067.8,0.0011]
[1772104079551,1.38446224,2068.0,2067.5,0.0011]
[1772104080728,1.38446224,2067.9,2067.5,0.0011]
[1772104081432,1.38446224,2067.7,2067.5,0.0011]
[1772104082345,1.38446224,2068.1,2067.6,1.44351831]
[1772104082698,1.38446224,2068.0,2067.6,1.44351831]
[1772104083351,1.38446224,2068.2,2067.7,1.65163502]
[1772104083528,1.38446224,2068.2,2067.7,3.09515333]
[1772104083952,1.38446224,2068.2,2067.7,1.44351831]
[1772104085253,1.38446224,2068.2,2067.7,1.73850933]
[1772104085550,2.59326009,2068.2,2067.7,2.9475561]
[1772104086552,1.38446224,2068.1,2067.7,1.73850933]
[1772104086928,1.38446224,2068.1,2067.7,1.44351831]
[1772104088951,1.38446224,2068.0,2067.7,1.44351831]
[1772104089355,1.20885593,2068.1,2067.7,1.44351831]
[1772104089736,1.38446224,2068.1,2067.7,2.65258734]
[1772104089935,1.38446224,2068.1,2067.7,1.44351831]
[1772104090230,1.38446224,2068.1,2067.5,0.29609102]
[1772104090464,1.38446224,2067.8,2067.5,0.0011]
[1772104090646,1.38446224,2067.6,2067.3,0.0011]
[1772104091164,2.59361165,2067.6,2067.3,0.0011]
[1772104091367,1.38446224,2067.6,2067.3,0.0011]
[1772104091560,2.59352226,2067.8,2067.3,1.44461831]
[1772104092062,1.38446224,2067.7,2067.3,1.44461831]
[1772104092262,1.38446224,2067.7,2067.3,0.0011]
[1772104092567,1.38446224,2067.7,2067.5,0.0011]
[1772104094678,2.5935936,2067.6,2067.5,0.0011]
[1772104096447,1.20913136,2067.6,2067.5,0.0011]
[1772104096648,1.38446224,2067.7,2067.5,0.0011]
[1772104100179,2.59356207,2067.7,2067.5,0.0011]
[1772104102863,1.36556225,2067.7,2067.5,0.0011]
[1772104103559,1.38446224,2067.5,2067.3,0.0011]
[1772104104975,1.38546224,2067.5,2067.3,0.0011]
[1772104105163,2.59465618,2067.5,2067.3,0.0011]
[1772104105367,1.38446224,2067.4,2067.0,1.44461831]
[1772104105549,1.38446224,2067.1,2066.8,0.0011]
[1772104106876,1.38446224,2067.1,2066.8,1.21068982]
[1772104107077,2.66481198,2067.3,2066.9,1.43840447]
[1772104107378,1.20928691,2067.4,2066.9,1.43840447]
[1772104107881,2.66477081,2067.4,2066.9,1.43840447]
[1772104108172,2.66477081,2067.4,2066.9,1.73339549]
[1772104109678,2.66477081,2067.4,2066.9,2.94292713]
[1772104109883,1.4554839,2067.4,2067.1,0.29499102]
[1772104110045,2.66473612,2067.4,2067.0,1.43840447]
[1772104110251,1.4554839,2067.3,2066.9,2.94292713]
[1772104110674,1.4554839,2067.3,2066.9,1.50452266]
[1772104110977,1.4554839,2067.3,2067.0,1.43840447]
[1772104111276,1.20925222,2067.4,2066.8,1.43950447]
[1772104111450,1.4564839,2067.5,2067.1,1.73339549]
[1772104111851,1.4564839,2067.5,2067.1,2.94281567]
[1772104112353,1.4564839,2067.5,2067.2,1.43840447]
[1772104112580,0.001,2067.5,2067.2,1.43840447]
[1772104114677,1.4564839,2067.5,2067.1,1.5044112]
[1772104114981,1.4564839,2067.5,2067.1,2.94281567]
[1772104116887,1.4564839,2067.5,2067.4,0.0011]
[1772104117662,0.001,2067.5,2067.4,1.33693448]
[1772104117858,2.53264317,2067.7,2067.4,0.0011]
[1772104118393,1.3235575,2067.6,2067.4,0.0011]
[1772104118961,2.53271547,2067.6,2067.4,0.0011]
[1772104119474,1.3235575,2067.5,2067.4,0.0011]
[1772104119998,1.3235575,2067.5,2067.1,0.0011]
[1772104120291,1.3235575,2067.5,2067.0,1.33583448]
[1772104120498,1.3235575,2067.5,2067.1,1.6308255]
[1772104120878,1.20914047,2067.6,2067.1,1.50438538]
[1772104121190,2.53269797,2067.6,2067.2,1.33583448]
[1772104123097,6.74430653,2067.7,2067.2,1.33583448]
[1772104123098,1.20910542,2067.7,2067.3,1.6308255]
[1772104123266,1.20904475,2067.8,2067.3,1.6308255]
[1772104123462,1.3235575,2067.7,2067.3,1.6308255]
[1772104124995,2.53256217,2067.9,2067.3,1.6308255]
[1772104125483,1.3235575,2067.8,2067.4,1.33583448]
[1772104127596,2.5326264,2067.8,2067.4,1.33583448]
[1772104128096,1.3235575,2067.7,2067.4,1.33583448]
[1772104128779,1.3235575,2067.7,2067.3,1.6308255]
[1772104129387,0.001,2067.6,2067.3,1.6308255]
[1772104129594,1.3245575,2067.6,2067.3,1.6308255]
[1772104130099,1.3245575,2067.6,2067.2,0.0011]
[1772104131068,1.61954852,2067.6,2067.2,0.0011]
[1772104131288,1.61954852,2067.6,2067.0,0.0011]
[1772104131900,1.3235575,2067.4,2067.0,0.0011]
[1772104133986,1.3235575,2067.2,2067.0,0.0011]
[1772104135999,2.63169211,2067.1,2067.0,0.0011]
[1772104136506,1.42226828,2067.1,2067.0,0.0011]
[1772104137703,2.63167187,2067.2,2067.0,0.0011]
[1772104140205,1.42226828,2067.3,2067.0,0.0011]
[1772104140503,1.42226828,2067.3,2067.0,1.39535403]
[1772104140710,1.20930242,2067.4,2067.0,1.39535403]
[1772104141004,2.63151918,2067.4,2067.0,1.39535403]
[1772104141499,2.63151918,2067.4,2067.2,0.0011]
[1772104142204,1.42226828,2067.3,2067.2,0.0011]
[1772104143007,1.42226828,2067.0,2066.9,0.0011]
[1772104143904,3.1272509,2067.4,2066.9,0.0011]
[1772104143905,1.42226828,2067.5,2066.9,1.69034505]
[1772104144102,2.63149503,2067.5,2067.0,1.39425403]
[1772104145409,2.63149503,2067.5,2067.1,1.39425403]
[1772104147785,1.21017949,2067.6,2067.2,1.39425403]
[1772104148112,0.001,2067.6,2067.4,1.39425403]
[1772104149289,1.21013583,2067.6,2067.4,1.39425403]
[1772104150316,0.001,2067.6,2067.2,1.39425403]
[1772104150718,1.42226828,2067.3,2066.9,0.0011]
[1772104152091,1.42226828,2067.3,2066.7,0.0011]
[1772104152416,1.42226828,2067.1,2066.7,0.0011]
[1772104153011,1.42226828,2066.9,2066.3,0.0011]
[1772104153516,1.42226828,2066.9,2066.4,1.39425403]
[1772104154525,2.63186766,2066.8,2066.4,1.39425403]
[1772104155025,1.42226828,2066.7,2066.3,0.0011]
[1772104155401,1.42226828,2066.5,2066.1,0.0011]
[1772104156818,1.2097623,2066.6,2066.2,1.39425403]
[1772104157536,2.63203058,2066.6,2066.2,1.39425403]
[1772104157752,2.63203058,2066.6,2066.1,0.0011]
[1772104158105,1.42226828,2066.5,2066.1,0.0011]
[1772104159030,2.6321018,2066.4,2066.1,0.0011]
[1772104160727,1.2096579,2066.7,2066.1,1.39535403]
[1772104162335,2.63192618,2066.7,2066.1,1.39535403]
[1772104162634,2.63192618,2066.7,2066.2,1.39425403]
[1772104163315,1.42226828,2066.6,2066.1,0.0011]
[1772104164236,2.63204326,2066.5,2066.1,0.0011]
[1772104165263,2.63204326,2066.5,2066.3,0.0011]
[1772104165407,1.42226828,2066.4,2066.1,0.0011]
[1772104165610,1.42226828,2066.4,2065.6,1.39535403]
[1772104165845,1.42226828,2066.4,2065.6,0.0011]
[1772104166246,1.42226828,2066.4,2065.6,2.6082223]
[1772104166424,2.56259505,2066.3,2065.7,1.3968243]
[1772104166819,1.35270298,2066.2,2065.7,1.3968243]
[1772104169043,1.21000919,2066.1,2065.7,1.3968243]
[1772104169252,2.56270171,2066.2,2065.7,1.3968243]
[1772104170743,1.35270298,2066.1,2065.7,1.3968243]
[1772104171524,2.56275101,2066.1,2065.7,1.3968243]
[1772104173629,1.35270298,2066.0,2065.7,1.3968243]
[1772104174654,1.21004803,2066.1,2065.7,1.3968243]
[1772104175661,1.35270298,2066.1,2065.7,1.3968243]
[1772104176954,1.35270298,2066.1,2065.9,0.0011]
[1772104177124,1.36690891,2066.4,2065.9,0.0011]
[1772104177860,1.36690891,2066.2,2065.9,0.0011]
[1772104178431,1.36690891,2066.2,2065.6,0.0011]
[1772104180544,1.36690891,2066.0,2065.6,0.0011]
[1772104182658,1.21012633,2065.9,2065.6,1.40279387]
[1772104184130,2.57703524,2065.9,2065.6,1.40279387]
[1772104184630,1.36690891,2065.8,2065.4,0.0011]
[1772104184835,1.36690891,2065.7,2065.4,0.0011]
[1772104186759,2.577211,2065.6,2065.4,0.0011]
[1772104187058,1.36690891,2065.5,2065.4,0.0011]
[1772104188661,2.57726959,2065.5,2065.4,0.0011]
[1772104189358,1.36690891,2065.4,2064.7,1.40169387]